Cogmind - Beta 14 @@@ ROGUE MODE // 2024.12.05 @ 18:08:50 Player: zicraftian Result: Destroyed by S-27 Virus with Autogun Performance ------------- Evolutions (6) 3000 Regions Visited (9) 1800 Robots Destroyed (15) 75 Value Destroyed (379) 379 Prototype IDs (2) 40 Alien Tech Used (0) 0 Bonus (0) 0 TOTAL SCORE: 5294 Bonus ------- None Cogmind --------- Core Integrity 0/1150 Matter 94/300 Energy 122/150 System Corruption 3% Temperature Cool (0) Movement Core (100) Ox1 Location -4/Factory Parts ------- > --- POWER (5) -------- Micro Fission Core > --- PROPULSION (6) --- (None) > --- UTILITY (6) ------ Coolant Injector Experimental Hacking Suite > --- WEAPON (2) ------- (None) > --- INVENTORY (5) ---- (None) Peak State ------------ > --- POWER ------------ Light Deuterium Engine Micro Fission Core > --- PROPULSION ------- Improved Flight Unit Xenon Bombardment Thruster Makeshift Flight Unit Nuclear Pulse Thruster Nuclear Pulse Array > --- UTILITY ---------- Advanced Visual Processing Unit Transmission Jammer ECM Suite Hacking Suite > --- WEAPON ----------- Remote Datajack > --- INVENTORY -------- Light Deuterium Engine Flight Unit Nuclear Pulse Thruster Nuclear Pulse Thruster Coolant Injector [Rating: 53] Favorites ----------- Power Light Deuterium Engine Engine Light Deuterium Engine Power Core Micro Fission Core Propulsion VTOL Module Treads Light Treads Leg Aluminum Leg Flight Unit VTOL Module Utility Advanced Visual Processing Unit Device ECM Suite Storage Small Storage Unit Processor Advanced Visual Processing Unit Hackware Hacking Suite Weapon Remote Datajack Energy Gun Small Laser Ballistic Gun Light Assault Rifle Special Weapon Remote Datajack Build | -11 -10 -9 -8 -7 -7 -7 -6 -5 -4 ------- Run | Yrd Mat Mat Mat Fac Low Low Fac Fac Fac Slots Evolved 12 | . . 2 2 2 . . 2 2 2 Power 4 | . . . 1 1 . . 1 1 . Propulsion 4 | . . 1 1 . . . 1 1 . Utility 4 | . . 1 . 1 . . . . 2 Weapon . | . . . . . . . . . . Parts Attached 65 | 8 8 7 7 4 7 . 9 4 11 Power 17 | 1 . 3 3 1 . . 5 3 1 Engine 14 | 1 . 3 3 1 . . 4 2 . Core 3 | . . . . . . . 1 1 1 Reactor . | . . . . . . . . . . Propulsion 28 | 4 4 3 3 1 4 . 3 1 5 Treads 2 | 2 . . . . . . . . . Leg 4 | 2 2 . . . . . . . . Wheel . | . . . . . . . . . . Hover . | . . . . . . . . . . Flight 22 | . 2 3 3 1 4 . 3 1 5 Utility 13 | 1 3 . 1 2 2 . 1 . 3 Device 9 | . 3 . . 2 1 . 1 . 2 Storage 1 | 1 . . . . . . . . . Processor 1 | . . . 1 . . . . . . Hackware 2 | . . . . . 1 . . . 1 Protection . | . . . . . . . . . . Artifact . | . . . . . . . . . . Weapon 7 | 2 1 1 . . 1 . . . 2 Energy Gun 3 | 1 1 1 . . . . . . . Energy Cannon . | . . . . . . . . . . Ballistic Gun 1 | 1 . . . . . . . . . Ballistic Cannon . | . . . . . . . . . . Launcher . | . . . . . . . . . . Special Weapon 3 | . . . . . 1 . . . 2 Impact Weapon . | . . . . . . . . . . Slashing Weapon . | . . . . . . . . . . Piercing Weapon . | . . . . . . . . . . Special Melee Weapon . | . . . . . . . . . . Unidentified Prototypes 2 | . . . 1 . . . . . 1 Parts Lost 21 | . . 2 . 2 1 . . 7 9 Power 2 | . . . . . . . . 1 1 Propulsion 11 | . . 1 . 1 1 . . 3 5 Utility 5 | . . . . 1 . . . 2 2 Weapon 3 | . . 1 . . . . . 1 1 Highest Loss Streak 4 | . . 1 . 2 1 . . 4 4 To Critical Strikes . | . . . . . . . . . . Average Slot Usage (%) 65 | . 89 64 65 61 69 84 80 58 15 Engine 11 | . 14 11 16 14 15 15 12 6 2 Leg 4 | . 25 . . . . . . . . Flight 21 | . 1 22 31 29 30 30 33 23 5 Device 10 | . 5 11 9 9 15 15 13 9 2 Storage 2 | . 12 . . . . . . . . Processor 3 | . . . 6 7 7 7 6 5 1 Hackware 2 | . . . . . . 7 6 3 . Energy Gun 6 | . 27 20 3 . . . . . . Special Weapon 1 | . . . . . . 7 6 2 . Peak Build Rating 53 | 6 9 11 16 23 35 35 45 53 46 Average Rating 23 | 4 8 8 14 19 26 35 40 41 16 On Entrance 20 | . 6 9 8 16 23 35 35 42 32 Naked Turns 150 | . . . . . . . . . 150 Heaviest Build 26 | 10 13 8 10 13 16 16 26 16 12 Greatest Support 40 | 40 20 8 17 17 23 23 31 38 28 Greatest Overweight (x) 2 | . 2 . . . . . . . 1 Average Overweight (x) . | . . . . . . . . . . Largest Inventory Capacity 8 | 8 8 5 5 5 5 5 5 5 5 Average Capacity 5 | 6 7 5 5 5 5 5 5 5 5 Most Carried 8 | 6 8 5 5 5 5 5 5 5 5 Average Carried 4 | 3 7 4 3 4 4 5 4 4 3 Final Capacity 8 | 8 5 5 5 5 5 5 5 5 5 Final Carried 6 | 6 5 5 4 5 5 5 5 4 . Class Distribution -------------------- 33% | Sprinter 32% | Mutant 28% | Derelict-Sprinter Dominant Class ---------------- Mutant | -10/Materials Sprinter | -9/Materials Sprinter | -8/Materials Sprinter | -7/Factory Sprinter | -7/Lower Caves Derelict-Sprinter | -7/Lower Caves Derelict-Sprinter | -6/Factory Derelict-Sprinter | -5/Factory Mutant | -4/Factory Resources | -11 -10 -9 -8 -7 -7 -7 -6 -5 -4 ----------- Run | Yrd Mat Mat Mat Fac Low Low Fac Fac Fac Matter Collected 681 | 185 175 80 . . 185 35 . . 21 Remotely . | . . . . . . . . . . Salvage Created 418 | . 118 300 . . . . . . . Parts 31 | . 9 22 . . . . . . . Haulers Intercepted . | . . . . . . . . . . Recyclers Shooed 1 | . . 1 . . . . . . . Parts Field Recycled . | . . . . . . . . . . Retrieved Matter . | . . . . . . . . . . Parts Self-Destructed . | . . . . . . . . . . Prevented . | . . . . . . . . . . Kills | -11 -10 -9 -8 -7 -7 -7 -6 -5 -4 ------- Run | Yrd Mat Mat Mat Fac Low Low Fac Fac Fac Combat Hostiles Destroyed 15 | . 5 10 . . . . . . . Guns 15 | . 5 10 . . . . . . . Classes Destroyed 4 | . 2 2 . . . . . . . Swarmer 6 | . 3 3 . . . . . . . Grunt 7 | . 2 5 . . . . . . . Brawler 1 | . . 1 . . . . . . . Sentry 1 | . . 1 . . . . . . . Best Kill Streak 5 | . 5 5 . . . . . . . Combat Bots Only 5 | . 5 5 . . . . . . . Max Kills in Single Turn 2 | . 2 1 . . . . . . . Gunslinging 1 | . 1 . . . . . . . . Exploded . | . . . . . . . . . . Melee . | . . . . . . . . . . Uniques/NPCs Destroyed . | . . . . . . . . . . Combat | -11 -10 -9 -8 -7 -7 -7 -6 -5 -4 -------- Run | Yrd Mat Mat Mat Fac Low Low Fac Fac Fac Hostile Shots Fired 286 | . 16 63 1 10 22 . 9 63 102 Missed 128 | . 2 24 . 4 14 . 6 37 41 Damage Taken 2763 | . 135 498 16 53 135 . 21 425 1480 Core 1503 | . . 196 16 6 36 . 5 94 1150 Absorbed by Shields . | . . . . . . . . . . Core Remaining (%) 90 | 100 100 51 97 . . 94 99 90 . Volleys Fired 60 | . 10 28 . . . 7 10 4 1 Largest 2 | . 2 2 . . . 1 1 1 1 Hottest 105 | . 105 105 . . . 5 5 5 5 Shots Fired 91 | . 20 49 . . . 7 10 4 1 Gun 69 | . 20 49 . . . . . . . Cannon . | . . . . . . . . . . Launcher . | . . . . . . . . . . Special 22 | . . . . . . 7 10 4 1 Kinetic . | . . . . . . . . . . Thermal 69 | . 20 49 . . . . . . . Explosive . | . . . . . . . . . . Electromagnetic . | . . . . . . . . . . Robot Hit Streak 12 | . 5 12 . . . 2 3 2 3 Robot Miss Streak 4 | . 3 4 . . . 2 2 3 . Penetration Max . | . . . . . . . . . . Secondary Targets 1 | . 1 . . . . . . . . Max Gunslinging Chain 1 | . 1 . . . . . . . . Shots Hit Robots 62 | . 13 38 . . . 4 4 2 1 Core Hits 52 | . 15 35 . . . . . . 2 Critical Kills . | . . . . . . . . . . Critical Parts Destroyed . | . . . . . . . . . . Critical Strikes . | . . . . . . . . . . Melee Attacks . | . . . . . . . . . . Impact . | . . . . . . . . . . Slashing . | . . . . . . . . . . Piercing . | . . . . . . . . . . Sneak Attacks . | . . . . . . . . . . Combat Hostiles . | . . . . . . . . . . Follow-up Attacks . | . . . . . . . . . . Damage Inflicted 655 | . 155 493 . . . . . . 7 Guns 648 | . 155 493 . . . . . . . Cannons . | . . . . . . . . . . Explosions . | . . . . . . . . . . Melee . | . . . . . . . . . . Ramming 7 | . . . . . . . . . 7 Kinetic . | . . . . . . . . . . Thermal 648 | . 155 493 . . . . . . . Explosive . | . . . . . . . . . . Electromagnetic . | . . . . . . . . . . Impact . | . . . . . . . . . . Slashing . | . . . . . . . . . . Piercing . | . . . . . . . . . . Highest Corruption 3 | . . . . . . . . . 3 Average Corruption 1 | . . . . . . . . . 1 Corruption Purged . | . . . . . . . . . . Corruption Blocked . | . . . . . . . . . . Overload Shots . | . . . . . . . . . . Overflow Damage . | . . . . . . . . . . Projectiles . | . . . . . . . . . . Explosions . | . . . . . . . . . . Melee . | . . . . . . . . . . Knockbacks . | . . . . . . . . . . Impact . | . . . . . . . . . . Kinetic . | . . . . . . . . . . Secondary . | . . . . . . . . . . Self-Inflicted Damage 3 | . . . . . . . . . 3 Shots . | . . . . . . . . . . Rammed 2 | . . . . . . . . . 2 Targets Rammed 2 | . . . . . . . . . 2 Kicked . | . . . . . . . . . . Crushed . | . . . . . . . . . . Highest Temperature 345 | . 345 207 . 4 5 . 37 26 . Average Temperature 40 | . 165 82 . 4 2 . 6 6 . Received Heat Transfer 408 | . 30 240 9 21 18 . 6 45 39 Effects 4 | . 2 2 . . . . . . . Interference 2 | . . 2 . . . . . . . Matter Decay 1 | . 1 . . . . . . . . Short Circuit 1 | . 1 . . . . . . . . Siege Activations . | . . . . . . . . . . Robots Corrupted . | . . . . . . . . . . Combat Hostiles . | . . . . . . . . . . Parts Fried . | . . . . . . . . . . Impact Corruptions . | . . . . . . . . . . Robots Melted . | . . . . . . . . . . Combat Hostiles . | . . . . . . . . . . Parts Melted . | . . . . . . . . . . Heat Transferred 1020 | . 245 775 . . . . . . . Parts Sabotaged . | . . . . . . . . . . Parts Stolen . | . . . . . . . . . . Parts Stripped . | . . . . . . . . . . Power Chain Reactions . | . . . . . . . . . . Alert | -11 -10 -9 -8 -7 -7 -7 -6 -5 -4 ------- Run | Yrd Mat Mat Mat Fac Low Low Fac Fac Fac Peak Influence 410 | . 114 410 202 70 . . 116 312 337 Initial 172 | . . 5 172 30 . . . 56 152 Average 110 | . 22 217 130 47 . . 37 170 219 Maximum Alert Level 2 | . . 2 1 . . . . 1 1 Low Security (%) 78 | 100 100 48 93 100 . . 100 68 44 Level 1 20 | . . 46 6 . . . . 31 55 Level 2 . | . . 5 . . . . . . . Level 3 . | . . . . . . . . . . Level 4 . | . . . . . . . . . . Level 5 . | . . . . . . . . . . High Security . | . . . . . . . . . . Max Security . | . . . . . . . . . . Squads Dispatched 17 | . . 2 . . . . 1 10 4 Investigation 10 | . . . . . . . 1 8 1 Extermination 1 | . . . . . . . . . 1 Reinforcement 6 | . . 2 . . . . . 2 2 Assault . | . . . . . . . . . . Garrison . | . . . . . . . . . . Intercept . | . . . . . . . . . . Searches Triggered . | . . . . . . . . . . Construction Impeded . | . . . . . . . . . . Haulers Reinforced . | . . . . . . . . . . Active Scanning Responses . | . . . . . . . . . . Cargo Convoy Interrupts . | . . . . . . . . . . Stealth | -11 -10 -9 -8 -7 -7 -7 -6 -5 -4 --------- Run | Yrd Mat Mat Mat Fac Low Low Fac Fac Fac Distress Signals 5 | . 1 3 . . . . . . 1 Communications Jammed 7 | . . . . . . . . 7 . Distress Signals 7 | . . . . . . . . 7 . Times Spotted 124 | . 8 26 3 5 26 . 3 29 24 Peak Tracking Total 12 | . 5 12 4 3 9 . 2 10 8 Tactical Retreats 25 | . . 2 . 2 7 . . 10 4 Traps | -11 -10 -9 -8 -7 -7 -7 -6 -5 -4 ------- Run | Yrd Mat Mat Mat Fac Low Low Fac Fac Fac Traps Triggered 2 | . . . . . . . . 1 1 Indirectly . | . . . . . . . . . . Trap Hack Attempts . | . . . . . . . . . . Triggered . | . . . . . . . . . . Disarmed . | . . . . . . . . . . Reprogrammed . | . . . . . . . . . . Reused . | . . . . . . . . . . Traps Extracted . | . . . . . . . . . . Installed . | . . . . . . . . . . Triggered . | . . . . . . . . . . Machines | -11 -10 -9 -8 -7 -7 -7 -6 -5 -4 ---------- Run | Yrd Mat Mat Mat Fac Low Low Fac Fac Fac Machines Disabled . | . . . . . . . . . . Max in Single Turn . | . . . . . . . . . . Machines Repaired . | . . . . . . . . . . Machines Dismantled . | . . . . . . . . . . Machines Sabotaged . | . . . . . . . . . . Overloaded Fab Kills . | . . . . . . . . . . Hacking | -11 -10 -9 -8 -7 -7 -7 -6 -5 -4 --------- Run | Yrd Mat Mat Mat Fac Low Low Fac Fac Fac Machines Accessed 25 | . 2 . 1 . 2 . 8 11 1 Terminals 19 | . 2 . 1 . . . 4 11 1 Fabricators . | . . . . . . . . . . Repair Stations 1 | . . . . . . . 1 . . Recycling Units 1 | . . . . . . . 1 . . Scanalyzers 1 | . . . . . . . 1 . . Garrison Access 1 | . . . . . . . 1 . . Total Hacks 57 | . 3 . 2 . 2 . 24 23 3 Successful 35 | . 2 . 1 . 2 . 19 11 . Failed 21 | . 1 . 1 . . . 5 11 3 Catastrophic 5 | . . . . . . . . 4 1 Database Lockouts 1 | . . . . . . . . 1 . Manual 18 | . . . . . 3 . 4 11 . Terminals 39 | . 3 . 2 . . . 8 23 3 Fabricators . | . . . . . . . . . . Repair Stations 1 | . . . . . . . 1 . . Recycling Units 10 | . . . . . . . 10 . . Scanalyzers 4 | . . . . . . . 4 . . Garrison Access 1 | . . . . . . . 1 . . Terminal Hacks 21 | . 2 . 1 . 2 . 5 11 . Record 12 | . . . . . 1 . 4 7 . Open Door 1 | . . . . . 1 . . . . Open DSF 2 | . . . . . . . 1 1 . Emergency Access Points 1 | . . . . . . . . 1 . Alert Level 1 | . 1 . . . . . . . . Unreport Threat 1 | . . . 1 . . . . . . Dispatch Records 1 | . 1 . . . . . . . . Hauler Manifests 1 | . . . . . . . . 1 . Zone Layout 1 | . . . . . . . . 1 . Fabricator Hacks . | . . . . . . . . . . Repair Station Hacks . | . . . . . . . . . . Recycling Unit Hacks 10 | . . . . . . . 10 . . Report Inventory 10 | . . . . . . . 10 . . Scanalyzer 4 | . . . . . . . 4 . . Insert Component 2 | . . . . . . . 2 . . Analyze 2 | . . . . . . . 2 . . Garrison Access Hacks . | . . . . . . . . . . Unauthorized Hacks . | . . . . . . . . . . Terminals . | . . . . . . . . . . Fabricators . | . . . . . . . . . . Repair Stations . | . . . . . . . . . . Recycling Units . | . . . . . . . . . . Scanalyzers . | . . . . . . . . . . Garrison Access . | . . . . . . . . . . Data Cores Recovered . | . . . . . . . . . . Used . | . . . . . . . . . . Hacking Detections 19 | . 2 . 1 . . . 5 10 1 Full Trace Events 10 | . . . . . . . 1 8 1 Feedback Events . | . . . . . . . . . . Feedback Blocked . | . . . . . . . . . . Robot Schematics Acquired . | . . . . . . . . . . Robots Built . | . . . . . . . . . . Authchips . | . . . . . . . . . . Time . | . . . . . . . . . . Total Robot Build Rating . | . . . . . . . . . . Part Schematics Acquired 2 | . . . . . . . 2 . . Parts Built . | . . . . . . . . . . Authchips . | . . . . . . . . . . Time . | . . . . . . . . . . Total Part Build Rating . | . . . . . . . . . . Parts Repaired . | . . . . . . . . . . Time . | . . . . . . . . . . Parts Recycled . | . . . . . . . . . . Recycled Matter . | . . . . . . . . . . Retrieved Matter . | . . . . . . . . . . Retrieved Components . | . . . . . . . . . . Parts Scanalyzed 2 | . . . . . . . 2 . . Part Schematics Acquired 2 | . . . . . . . 2 . . Parts Damaged . | . . . . . . . . . . Bothacking | -11 -10 -9 -8 -7 -7 -7 -6 -5 -4 ------------ Run | Yrd Mat Mat Mat Fac Low Low Fac Fac Fac Used RIF Installer . | . . . . . . . . . . Robots Hacked 5 | . . . . . . 1 2 1 1 Non-combat 3 | . . . . . . . 2 1 . Combat 2 | . . . . . . 1 . . 1 Robot Hacks Applied 9 | . . . . . . 2 4 2 1 parse_system 6 | . . . . . . 2 2 1 1 no_distress 1 | . . . . . . . 1 . . find_chute 2 | . . . . . . . 1 1 . Relay Couplers Released . | . . . . . . . . . . Fabnet Peak Effective % . | . . . . . . . . . . Robots Rewired . | . . . . . . . . . . Allies Hacked . | . . . . . . . . . . Hacks Repelled . | . . . . . . . . . . Allies | -11 -10 -9 -8 -7 -7 -7 -6 -5 -4 -------- Run | Yrd Mat Mat Mat Fac Low Low Fac Fac Fac Total Allies . | . . . . . . . . . . Largest Group . | . . . . . . . . . . Highest-Rated Group . | . . . . . . . . . . Highest-Rated Ally . | . . . . . . . . . . Total Orders . | . . . . . . . . . . Ally Attacks . | . . . . . . . . . . Total Damage . | . . . . . . . . . . Kills . | . . . . . . . . . . Allies Corrupted . | . . . . . . . . . . Allies Melted . | . . . . . . . . . . Intel | -11 -10 -9 -8 -7 -7 -7 -6 -5 -4 ------- Run | Yrd Mat Mat Mat Fac Low Low Fac Fac Fac Robot Analysis Total . | . . . . . . . . . . Derelict Logs Recovered 3 | . . . . . 2 1 . . . Drone Launches . | . . . . . . . . . . Drone Recoveries . | . . . . . . . . . . Exploration | -11 -10 -9 -8 -7 -7 -7 -6 -5 -4 ------------- Run | Yrd Mat Mat Mat Fac Low Low Fac Fac Fac Turns Passed 2682 | 131 408 259 82 96 452 190 396 331 337 Spaces Moved 5232 | 104 216 378 228 301 1323 69 1045 961 607 Core 359 | 23 3 . . . . . . . 333 Treads 5 | 5 . . . . . . . . . Legs 262 | 76 186 . . . . . . . . Wheels . | . . . . . . . . . . Hover . | . . . . . . . . . . Flight 4606 | . 27 378 228 301 1323 69 1045 961 274 Fastest Speed 28 | 50 32 32 28 28 28 33 30 31 31 Average Speed 37 | 106 110 32 28 28 30 33 30 33 43 Slowest Speed 190 | 160 190 32 30 30 33 33 31 37 120 Overloaded Moves . | . . . . . . . . . . Propulsion Burnouts . | . . . . . . . . . . Robots Hopped 26 | . . 3 . 1 7 1 4 10 . Cave-ins Triggered . | . . . . . . . . . . Exploration Rate (%) 28 | 4 34 29 21 10 92 8 26 42 20 Regions Visited 9 Branch Regions 2 Pre-discovered Areas 1 | . . . . . . 1 . . . Known Exits Taken 1 | . . . . . . . 1 . . Unknown Exits Taken 8 | 1 1 1 1 1 1 1 . 1 . Scrap Searched 6 | . . . . . 5 1 . . . Spaces Dug . | . . . . . . . . . . Terrain Destroyed . | . . . . . . . . . . Melee . | . . . . . . . . . . Projectile . | . . . . . . . . . . AOE . | . . . . . . . . . . Terrain Rammed . | . . . . . . . . . . Walls Destroyed . | . . . . . . . . . . Machines Disabled . | . . . . . . . . . . Actions | -11 -10 -9 -8 -7 -7 -7 -6 -5 -4 --------- Run | Yrd Mat Mat Mat Fac Low Low Fac Fac Fac Total 5867 | 125 368 464 246 309 1361 231 1120 961 682 Wait 429 | . 115 44 5 2 27 157 40 . 39 Move 5172 | 103 215 371 227 298 1308 67 1036 940 607 Hop 25 | . . 3 . 1 7 . 4 10 . Pick Up 48 | 12 7 5 2 3 7 . 8 . 4 Fast Attach 13 | . 6 . 1 2 1 . 1 2 . Attach 42 | 8 1 3 6 2 3 . 6 2 11 Detach 19 | 2 1 2 4 . . . 4 1 5 Swap 10 | . 1 4 . . 3 . 2 . . Drop 36 | . 12 4 1 1 5 . 9 2 2 Fire 60 | . 10 28 . . . 7 10 4 1 Melee . | . . . . . . . . . . Ram 2 | . . . . . . . . . 2 Kick . | . . . . . . . . . . Crush . | . . . . . . . . . . Escape Stasis 11 | . . . . . . . . . 11 Rewire . | . . . . . . . . . . Trap . | . . . . . . . . . . Miscellaneous . | . . . . . . . . . . Route ------- -11/Scrapyard -10/Materials -9/Materials -8/Materials -7/Factory -7/Lower Caves -7/Lower Caves -6/Factory (discovered 2 exits: *Fac / Low) -5/Factory -4/Factory History --------- Turn | Location | Event 3 | -11/Scrapyard | Discovered new exit (range 15) 132 | -11/Scrapyard | Entered Materials 310 | -10/Materials | Build established: Mutant 435 | -10/Materials | Discovered new exit (range 16) 540 | -10/Materials | Entered another Materials area 540 | -9/Materials | Evolved 2 slots: Propulsion x1, Utility x1 798 | -9/Materials | Discovered new exit (range 4) 799 | -9/Materials | Entered another Materials area 799 | -8/Materials | Evolved 2 slots: Power x1, Propulsion x1 853 | -8/Materials | Build established: Sprinter 875 | -8/Materials | Discovered new exit (range 7) 881 | -8/Materials | Entered Factory 881 | -7/Factory | Evolved 2 slots: Power x1, Utility x1 974 | -7/Factory | Discovered new exit (range 9) 977 | -7/Factory | Entered Lower Caves 996 | -7/Lower Caves | Encountered a Warlord checkpoint 1028 | -7/Lower Caves | Attracted the attention of an 0b10 outpost 1039 | -7/Lower Caves | Learned Factory terminal intel 1189 | -7/Lower Caves | Learned location of 2 exits from Factory 1427 | -7/Lower Caves | Discovered new exit (range 6) 1429 | -7/Lower Caves | Entered another Lower Caves area 1430 | -7/Lower Caves | Encountered a Warlord checkpoint 1612 | -7/Lower Caves | Learned location of Zion (-6) 1617 | -7/Lower Caves | Discovered new exit (range 5) 1619 | -7/Lower Caves | Entered Factory 1619 | -6/Factory | Evolved 2 slots: Power x1, Propulsion x1 1620 | -6/Factory | Identified exit to Lower Caves 1620 | -6/Factory | Identified exit to Factory 1621 | -6/Factory | Loaded intel: 28 terminal locations 1771 | -6/Factory | Build established: Derelict-Sprinter 2008 | -6/Factory | Spotted B-75 Beast 2015 | -6/Factory | Entered another Factory area 2015 | -5/Factory | Evolved 2 slots: Power x1, Propulsion x1 2030 | -5/Factory | Central database locked down 2227 | -5/Factory | Lost 3 parts (1p1n1w) 2272 | -5/Factory | Spotted B-75 Beast 2298 | -5/Factory | Lost 4 parts (2n2u) 2341 | -5/Factory | Discovered new exit (range 13) 2346 | -5/Factory | Entered another Factory area 2346 | -4/Factory | Evolved 2 slots: Utility x2 2397 | -4/Factory | Spotted B-86 Titan 2447 | -4/Factory | Lost 4 parts (2n2u) 2524 | -4/Factory | Core integrity fell below 50% 2531 | -4/Factory | Lost 3 parts (1p2n) 2652 | -4/Factory | Found Prototype Hackware 2653 | -4/Factory | Identified Exp. Hacking Suite 2677 | -4/Factory | Core integrity fell below 20% 2683 | -4/Factory | Destroyed by S-27 Virus with Autogun Last Messages --------------- 02636_ Slammed into T-07 Excavator. 02651_ ALERT: Suspicious intruders detected, dispatching Cutter reinforcements to area. 02652_ Acquired Prototype Hackware. 02653_ Identified Exp. Hacking Suite. 02659_ U-05 Engineer works on Pressure Siphon. 02673_ K-01 Serf cleans the Pressure Siphon. 02674_ Pressure Siphon disabled. 02674_ K-01 Serf collects debris. 02675_ Penetrated by Slug. 02676_ U-05 Engineer works on Pressure Siphon. 02677_ K-01 Serf collects debris. 02678_ Nuclear Pulse Thruster destroyed. 02680_ Jacked S-27 Virus... >>parse_system Reading system data... 02681_ U-05 Engineer works on Pressure Siphon. 02681_ Remote Datajack destroyed. 02682_ K-01 Serf collects debris. Map ----- +----------------------------------------------------+ | ????????????????????????# ?#?????? | | ! ! ?????????????????????????# ?####### | | = ???????????????????????### ??# " | | ! ????????????????????????? ????# ! " | | ######???????????????????????????# ????# " | | ?????????????????????????????????# ???# | | ?????????????????????????????????# ???# !! | | ?????????????????????????????????# ??# !! | | ??????????????????????????????????# ??# !! | | ??????????????????????????????????# ?# | | ??????????????????????????????????# ###+#### | | ??????????????????????????????????#! | | ??????????????????????????????????# # | | ??????????????????????????????????# """" """" # | | ??????????????????????????????????# """" """" # | | ??????????????????????????????????# """" """" # | | ??????????????????????????????????# ## | | ??????????????????????????????????# <" """" #? | | ????????????+#################+####t u" """" ## | | ????????????